Cogmind - Beta 13 @@@ ROGUE MODE // 2024.05.23 @ 09:49:51 Player: Falling_Sands Result: Destroyed by T8-HAE(R) with Subdweller Machine Gun Performance ------------- Evolutions (0) 0 Regions Visited (3) 600 Robots Destroyed (21) 105 Value Destroyed (689) 689 Prototype IDs (0) 0 Alien Tech Used (0) 0 Bonus (0) 0 TOTAL SCORE: 1394 Bonus ------- None Cogmind --------- Core Integrity 0/250 Matter 280/300 Energy 98/100 System Corruption 0% Temperature Cool (0) Movement Walking (120) Location -10/Subcaves Parts ------- > --- POWER (1) -------- (None) > --- PROPULSION (2) --- Aluminum Leg > --- UTILITY (2) ------ Small Storage Unit > --- WEAPON (2) ------- Beam Cannon > --- INVENTORY (8) ---- Light Treads Aluminum Leg Aluminum Leg Mining Laser Peak State ------------ > --- POWER ------------ Light Ion Engine > --- PROPULSION ------- Aluminum Leg Aluminum Leg > --- UTILITY ---------- Small Storage Unit Small Storage Unit > --- WEAPON ----------- EM Pulse Gun Assault Rifle > --- INVENTORY -------- Light Ion Engine Light Treads Light Treads Aluminum Leg Aluminum Leg Compact Wheel Small Laser [Rating: 7] Favorites ----------- Power Light Ion Engine Engine Light Ion Engine Propulsion Aluminum Leg Leg Aluminum Leg Utility Small Storage Unit Device Terrain Scanner Storage Small Storage Unit Weapon Assault Rifle Energy Gun EM Pulse Gun Energy Cannon Beam Cannon Ballistic Gun Assault Rifle Launcher Grenade Launcher Build | -11 -10 -10 -10 ------- Run | Yrd Mat Min Sub Slots Evolved . | . . . . Power . | . . . . Propulsion . | . . . . Utility . | . . . . Weapon . | . . . . Parts Attached 14 | 6 2 4 2 Power 3 | 1 1 1 . Engine 3 | 1 1 1 . Core . | . . . . Reactor . | . . . . Propulsion 4 | 2 . 2 . Treads . | . . . . Leg 4 | 2 . 2 . Wheel . | . . . . Hover . | . . . . Flight . | . . . . Utility 3 | 1 1 1 . Device 1 | . . 1 . Storage 2 | 1 1 . . Processor . | . . . . Hackware . | . . . . Protection . | . . . . Artifact . | . . . . Weapon 4 | 2 . . 2 Energy Gun 1 | 1 . . . Energy Cannon 1 | . . . 1 Ballistic Gun 1 | 1 . . . Ballistic Cannon . | . . . . Launcher 1 | . . . 1 Special Weapon . | . . . . Impact Weapon . | . . . . Slashing Weapon . | . . . . Piercing Weapon . | . . . . Special Melee Weapon . | . . . . Unidentified Prototypes . | . . . . Parts Lost 9 | . . 3 6 Power 2 | . . 1 1 Propulsion 3 | . . 2 1 Utility 1 | . . . 1 Weapon 3 | . . . 3 Highest Loss Streak 6 | . . 2 6 To Critical Strikes 1 | . . . 1 Average Slot Usage (%) 92 | . 85 95 86 Engine 11 | . 14 10 14 Leg 27 | . 28 27 23 Device 10 | . . 13 10 Storage 14 | . 14 14 14 Energy Gun 13 | . 14 14 9 Ballistic Gun 13 | . 14 14 9 Naked Turns . | . . . . Heaviest Build 15 | 12 14 15 13 Greatest Support 20 | 20 20 20 20 Greatest Overweight (x) 1 | . . . 1 Average Overweight (x) . | . . . . Largest Inventory Capacity 8 | 8 8 8 8 Average Capacity 7 | 7 8 8 8 Most Carried 8 | 6 8 8 6 Average Carried 6 | 3 7 6 5 Final Capacity 8 | 8 8 8 8 Final Carried 8 | 6 8 6 4 Class Distribution -------------------- 100% | Mutant Dominant Class ---------------- Mutant | -10/Materials Mutant | -10/Mines Mutant | -10/Subcaves Resources | -11 -10 -10 -10 ----------- Run | Yrd Mat Min Sub Matter Collected 399 | 166 156 74 3 Remotely . | . . . . Salvage Created 691 | . 286 220 185 Parts 46 | . 19 16 11 Haulers Intercepted . | . . . . Recyclers Shooed . | . . . . Parts Field Recycled . | . . . . Retrieved Matter . | . . . . Parts Self-Destructed 3 | . . . 3 Prevented . | . . . . Kills | -11 -10 -10 -10 ------- Run | Yrd Mat Min Sub Combat Hostiles Destroyed 19 | . 6 7 6 Guns 12 | . 5 6 1 Cannons 1 | . . . 1 AOE 6 | . 1 1 4 Classes Destroyed 6 | . 2 2 2 Builder 1 | . 1 . . Tunneler 1 | . . 1 . Swarmer 3 | . . 3 . Grunt 10 | . 6 4 . Sentry 1 | . . . 1 Subdweller 5 | . . . 5 Best Kill Streak 5 | . 2 3 5 Combat Bots Only 5 | . 2 3 5 Max Kills in Single Turn 2 | . 2 2 2 Gunslinging . | . . . . Exploded 2 | . 1 1 2 Melee . | . . . . Uniques/NPCs Destroyed . | . . . . Combat | -11 -10 -10 -10 -------- Run | Yrd Mat Min Sub Hostile Shots Fired 71 | . 21 25 25 Missed 25 | . 11 6 8 Damage Taken 1016 | . 155 342 519 Core 250 | . 30 22 198 Absorbed by Shields . | . . . . Core Remaining (%) 100 | 100 . . . Volleys Fired 48 | . 14 15 19 Largest 2 | . 2 2 2 Hottest 90 | . 60 60 90 Shots Fired 80 | . 28 30 22 Gun 61 | . 28 30 3 Cannon 17 | . . . 17 Launcher 2 | . . . 2 Special . | . . . . Kinetic 31 | . 14 15 2 Thermal 17 | . . . 17 Explosive 2 | . . . 2 Electromagnetic 30 | . 14 15 1 Robot Hit Streak 6 | . 5 4 6 Robot Miss Streak 5 | . 5 3 1 Penetration Max . | . . . . Secondary Targets . | . . . . Shots Hit Robots 54 | . 17 18 19 Core Hits 36 | . 12 13 11 Critical Kills . | . . . . Critical Parts Destroyed . | . . . . Critical Strikes . | . . . . Melee Attacks . | . . . . Impact . | . . . . Slashing . | . . . . Piercing . | . . . . Sneak Attacks . | . . . . Combat Hostiles . | . . . . Follow-up Attacks . | . . . . Damage Inflicted 1404 | . 326 386 692 Guns 548 | . 255 255 38 Cannons 284 | . . . 284 Explosions 542 | . 71 101 370 Melee . | . . . . Ramming 30 | . . 30 . Kinetic 252 | . 103 123 26 Thermal 456 | . 71 101 284 Explosive 370 | . . . 370 Electromagnetic 296 | . 152 132 12 Impact . | . . . . Slashing . | . . . . Piercing . | . . . . Highest Corruption . | . . . . Average Corruption . | . . . . Corruption Purged . | . . . . Corruption Blocked . | . . . . Overload Shots . | . . . . Overflow Damage 42 | . . 42 . Projectiles . | . . . . Explosions 42 | . . 42 . Melee . | . . . . Knockbacks . | . . . . Impact . | . . . . Kinetic . | . . . . Secondary . | . . . . Self-Inflicted Damage 160 | . 37 52 71 Shots 4 | . 1 1 2 Rammed . | . . . . Targets Rammed 10 | . . 10 . Kicked 10 | . . 10 . Crushed . | . . . . Highest Temperature 79 | . 75 79 5 Average Temperature 36 | . 34 41 4 Received Heat Transfer 282 | . 87 117 78 Siege Activations . | . . . . Robots Corrupted . | . . . . Combat Hostiles . | . . . . Parts Fried . | . . . . Impact Corruptions . | . . . . Robots Melted . | . . . . Combat Hostiles . | . . . . Parts Melted . | . . . . Heat Transferred 742 | . 50 100 592 Parts Sabotaged . | . . . . Parts Stolen . | . . . . Parts Stripped . | . . . . Power Chain Reactions 2 | . 1 1 . Alert | -11 -10 -10 -10 ------- Run | Yrd Mat Min Sub Peak Influence 210 | . 210 151 . Initial 81 | . . 81 . Average 85 | . 103 86 . Maximum Alert Level 1 | . 1 . . Low Security (%) 96 | 100 82 100 . Level 1 3 | . 17 . . Level 2 . | . . . . Level 3 . | . . . . Level 4 . | . . . . Level 5 . | . . . . High Security . | . . . . Max Security . | . . . . Squads Dispatched 3 | . 3 . . Investigation 1 | . 1 . . Extermination . | . . . . Reinforcement 2 | . 2 . . Assault . | . . . . Garrison . | . . . . Intercept . | . . . . Searches Triggered . | . . . . Construction Impeded . | . . . . Haulers Reinforced . | . . . . Active Scanning Responses . | . . . . Cargo Convoy Interrupts . | . . . . Stealth | -11 -10 -10 -10 --------- Run | Yrd Mat Min Sub Distress Signals . | . . . . Communications Jammed . | . . . . Distress Signals . | . . . . Times Spotted 25 | . 9 6 10 Peak Tracking Total 6 | . 4 2 6 Tactical Retreats . | . . . . Traps | -11 -10 -10 -10 ------- Run | Yrd Mat Min Sub Traps Triggered 1 | . 1 . . Indirectly . | . . . . Trap Hack Attempts . | . . . . Triggered . | . . . . Disarmed . | . . . . Reprogrammed . | . . . . Reused . | . . . . Traps Extracted . | . . . . Installed . | . . . . Triggered . | . . . . Machines | -11 -10 -10 -10 ---------- Run | Yrd Mat Min Sub Machines Disabled 1 | . 1 . . Max in Single Turn 1 | . 1 . . Machines Repaired . | . . . . Machines Dismantled . | . . . . Machines Sabotaged . | . . . . Overloaded Fab Kills . | . . . . Hacking | -11 -10 -10 -10 --------- Run | Yrd Mat Min Sub Machines Accessed 1 | . 1 . . Terminals 1 | . 1 . . Fabricators . | . . . . Repair Stations . | . . . . Recycling Units . | . . . . Scanalyzers . | . . . . Garrison Access . | . . . . Total Hacks 2 | . 2 . . Successful . | . . . . Failed 2 | . 2 . . Catastrophic 1 | . 1 . . Database Lockouts . | . . . . Manual 2 | . 2 . . Terminals 2 | . 2 . . Fabricators . | . . . . Repair Stations . | . . . . Recycling Units . | . . . . Scanalyzers . | . . . . Garrison Access . | . . . . Terminal Hacks . | . . . . Fabricator Hacks . | . . . . Repair Station Hacks . | . . . . Recycling Unit Hacks . | . . . . Scanalyzer . | . . . . Garrison Access Hacks . | . . . . Unauthorized Hacks . | . . . . Terminals . | . . . . Fabricators . | . . . . Repair Stations . | . . . . Recycling Units . | . . . . Scanalyzers . | . . . . Garrison Access . | . . . . Data Cores Recovered . | . . . . Used . | . . . . Hacking Detections 1 | . 1 . . Full Trace Events 1 | . 1 . . Feedback Events . | . . . . Feedback Blocked . | . . . . Robot Schematics Acquired . | . . . . Robots Built . | . . . . Authchips . | . . . . Time . | . . . . Total Robot Build Rating . | . . . . Part Schematics Acquired . | . . . . Parts Built . | . . . . Authchips . | . . . . Time . | . . . . Total Part Build Rating . | . . . . Parts Repaired . | . . . . Time . | . . . . Parts Recycled . | . . . . Recycled Matter . | . . . . Retrieved Matter . | . . . . Retrieved Components . | . . . . Parts Scanalyzed . | . . . . Part Schematics Acquired . | . . . . Parts Damaged . | . . . . Bothacking | -11 -10 -10 -10 ------------ Run | Yrd Mat Min Sub Used RIF Installer . | . . . . Robots Hacked . | . . . . Non-combat . | . . . . Combat . | . . . . Robot Hacks Applied . | . . . . Relay Couplers Released . | . . . . Fabnet Peak Effective % . | . . . . Robots Rewired . | . . . . Allies Hacked . | . . . . Hacks Repelled . | . . . . Allies | -11 -10 -10 -10 -------- Run | Yrd Mat Min Sub Total Allies . | . . . . Largest Group . | . . . . Highest-Rated Group . | . . . . Highest-Rated Ally . | . . . . Total Orders . | . . . . Ally Attacks . | . . . . Total Damage . | . . . . Kills . | . . . . Allies Corrupted . | . . . . Allies Melted . | . . . . Intel | -11 -10 -10 -10 ------- Run | Yrd Mat Min Sub Robot Analysis Total . | . . . . Derelict Logs Recovered 3 | . . 2 1 Drone Launches . | . . . . Drone Recoveries . | . . . . Exploration | -11 -10 -10 -10 ------------- Run | Yrd Mat Min Sub Turns Passed 1564 | 78 334 1028 124 Spaces Moved 944 | 54 229 596 65 Core 2 | 2 . . . Treads . | . . . . Legs 942 | 52 229 596 65 Wheels . | . . . . Hover . | . . . . Flight . | . . . . Fastest Speed 50 | 50 120 120 120 Average Speed 119 | 117 120 120 121 Slowest Speed 190 | 120 120 120 190 Overloaded Moves . | . . . . Propulsion Burnouts . | . . . . Robots Hopped . | . . . . Cave-ins Triggered . | . . . . Exploration Rate (%) 37 | 4 39 99 7 Regions Visited 3 Branch Regions 2 Pre-discovered Areas 1 | . . 1 . Known Exits Taken . | . . . . Unknown Exits Taken 3 | 1 1 1 . Scrap Searched 2 | . . 2 . Spaces Dug . | . . . . Terrain Destroyed 16 | . . 6 10 Melee . | . . . . Projectile . | . . . . AOE 16 | . . 6 10 Terrain Rammed . | . . . . Walls Destroyed . | . . . . Machines Disabled . | . . . . Actions | -11 -10 -10 -10 --------- Run | Yrd Mat Min Sub Total 1295 | 66 264 877 88 Wait 258 | . 8 248 2 Move 941 | 53 228 595 65 Hop . | . . . . Pick Up 16 | 7 6 3 . Fast Attach 7 | 5 1 1 . Attach 7 | 1 1 3 2 Detach 1 | . 1 . . Swap . | . . . . Drop 7 | . 5 2 . Fire 48 | . 14 15 19 Melee . | . . . . Ram . | . . . . Kick 10 | . . 10 . Crush . | . . . . Escape Stasis . | . . . . Rewire . | . . . . Trap . | . . . . Miscellaneous . | . . . . Route ------- -11/Scrapyard -10/Materials -10/Mines (discovered 3 exits: [*Mat x2] / [*Sub]) -10/Subcaves History --------- Turn | Location | Event 8 | -11/Scrapyard | Discovered new exit (range 16) 79 | -11/Scrapyard | Entered Materials 97 | -10/Materials | Discovered new exit (range 12) 328 | -10/Materials | Build established: Mutant 413 | -10/Materials | Entered Mines 448 | -10/Mines | YI-UF0 nonchalantly dropped a Grenade Launcher on the ground 827 | -10/Mines | Discovered new exit (range 10) 1128 | -10/Mines | Learned location of Storage (-7) 1174 | -10/Mines | Discovered new exit (range 9) 1349 | -10/Mines | Learned location of 1 exit from Materials 1439 | -10/Mines | Discovered new exit (range 3) 1441 | -10/Mines | Entered Subcaves 1444 | -10/Subcaves | Learned location of 1 exit from Materials 1519 | -10/Subcaves | Ambushed by swarm of Subdwellers 1522 | -10/Subcaves | Ambushed by Subdwellers from Twisted Machinery 1539 | -10/Subcaves | Core integrity fell below 50% 1557 | -10/Subcaves | Lost 4 allies 1562 | -10/Subcaves | Ambushed by Subdweller buried in earth 1563 | -10/Subcaves | Core integrity fell below 20% 1565 | -10/Subcaves | Destroyed by T8-HAE(R) with Subdweller Machine Gun Last Messages --------------- 01525_ HQ-488(R) affixes Scrap Shield Fragment to Scrap Shield. 01526_ DX-C5R(h) destroyed. 01527_ Aluminum Leg destroyed. 01527_ HJ-4VO(R) affixes Scrap Shield Fragment to Scrap Shield. 01532_ HQ-488(R) affixes Scrap Shield Fragment to Scrap Shield. 01533_ Subatomizers dissect the Disposable Heat Sink. 01533_ Terrain Scanner destroyed. 01535_ HQ-488(R) destroyed. 01535_ HJ-4VO(R) destroyed. 01538_ 5U-COM(R) destroyed. 01538_ 5C-JYM(R) destroyed. 01539_ The unstable cave ceiling collapses. 01539_ Sub. Machine Gun crushed. 01539_ Grenade Launcher destroyed. 01543_ Subatomizers dissect the Disposable Heat Sink. 01544_ Q7-NPV(R) affixes Scrap Shield Fragment to Scrap Shield. 01548_ EC-7L4(R) affixes Scrap Shield Fragment to Scrap Shield. 01549_ Q7-NPV(R) destroyed. 01562_ Lgt. Ion Engine destroyed. 01563_ T8-HAE(R): "ARGHSUB!" Map ----- +----------------------------------------------------+ | ??????????????????????????????????### #???????? | | ?????????????????????????????????## #???? ??? | | ?????????????????????????????????# ?#?????? | | ?????????????????????????????????# ???????? | | ????????????????????????????????## ??????### | | ????????????????????????????????# ??#???## | | ????????????????????????????????# #???#### | | ?????????????????????????????#??# ##### | | ???????????????????????????????????## | | ?????????????????????#?????????????## % % ## | | ????????????????????????????#?#???## ##? | | ?????????????????????????????????## #?? | | ????????????????????????????????## ## #?? | | ????????????????????????????????# ########## #?? | | ???????????????????????????#???## ##????????###?? | | ???????????????????????????????# #????????#???#? | | ???????????????????#????######## ##????????????? | | ????????????????#???##?## ;;# #?????????#??? | | ???????????? ### ?## ##;;;;*=! #????????#???? | | ??????????? # *%!%= #????????????? | | ????????????? * [* =![ #?#??????????? | | ????????????????# %! %&]! ! ###???????#???? | | ????????????????# % ![% #?????????????? | | ????????????????# = ; %#?????????????? | | ?????????????????# * ## #?????????????? | | ????????????????????#; R%@R ### #????????????? | | ????????????????????##; & ; #### ##????????????? | | ???????????????????#?#;; ##?####?????????????? | | ?????????????????????##; ;; #???#???????????????? | | ???????????????????#??#; ####???????????????????? | | ??????????????????????## ?????????????#????????? | | ????????????#?????????? % ??????????????????????? | | ??????????????????????? ? ????????????????????? | | ???????????????????????% ?? ???#??????????????? | | ??????????????????????# ??????#??????????????? | | ?????????????????????### ? ???????????????????? | | ???????????????????????## %?????????????????????? | | ????????????????????????? ????????????????????? | | ????????????????????????? ????????????????????? | | ????????????????????????? ??????????????????????? | | ????????????????????????? ??????????????????????? | | ?????????????????????????????????????????????????? | | ?????????????????????????????????????????????????? | | ?????????????????????????????????????????????????? | | ?????????????????????????????????????????????????? | | ?????????????????????????????????????????????????? | | ?????????????????????????????????????????????????? | | ?????????????????????????????????????????????????? | | ?????????????????????????????????????????????????? | | ?????????????????????????????????????????????????? | +----------------------------------------------------+ Best States ------------- Heat Dissipation 25 Energy Generation 10 Energy Capacity 250 Matter Stores 300 Matter Capacity 300 Sight Range 16 Terrain Scan Range 14 Terrain Scan Density 10 Evasion (%) 55 Item Schematics ----------------- None Robot Schematics ------------------ None Fabricated ------------ Nothing Alien Tech Used ----------------- None Achievements -------------- None Challenges ------------ None Game ------ Seed ActiveMyomerKatana Manual? 0 Play Time 00:18:56 Cumulative 14.0 hours Start 2024.05.23 @ 09:32:15 End 2024.05.23 @ 09:49:51 Sessions 1 Manual Loads 0 Difficulty Rogue Special Mode None Game No. 13 Rogue 13 Adventurer 0 Explorer 0 Win Type - Total 0 Types 0/0/0/0/0/0/0/0/0 Lore% 14 Gallery% 18 Achievement% 14 Wizard Run 0 Options --------- Layout 0 ASCII 0 Keyboard 0 Movement Mouse Keybinds 0 Fullscreen 1 Font 36/Smallcaps Map View 76x50 Zoom Use 0% Tactical HUD 1 Map Filters NONE Filters NONE Steam 1 RUN: 1d74514c-f1b0-4bf8-8c05-757976fa1992